[Event "Istanbul Open 2019"]
[Site "Istanbul"]
[Date "2019.08.29"]
[Round "5.4"]
[White "Shanava, Konstantine"]
[Black "Yarar, Muammer Atakan"]
[Result "*"]
[ECO "B11"]
[WhiteElo "2496"]
[BlackElo "1779"]
[Annotator "ChessBase"]
[PlyCount "37"]
[EventDate "2019.08.26"]
[EventType "swiss"]
[EventCountry "TUR"]
[SourceTitle "playchess.com"]
[Source "ChessBase"]
[SourceQuality "1"]
[TimeControl "5400+30"]

1. e4 c6 2. Nc3 d5 3. Nf3 Bg4 4. h3 Bxf3 5. Qxf3 e6 6. d4 dxe4 7. Qxe4 Nf6 8. Qd3 Qc7 9. Be2 Bd6 10. g3 Nbd7 11. Ne4 Nxe4 12. Qxe4 Nf6 13. Qf3 Qa5+ 14. c3 Qd5 15. O-O Qxf3 16. Bxf3 h6 {[%emt 1:36:42]} 17. Re1 {[%emt 0:25:30]} O-O-O {[%emt 0:00:00] ?d1 Rhe8} 18. Re2 {[%emt 0:03:30]} Nd5 {[%emt 0:00:00]} 19. Bd2 {[%emt 0:00:00] ?d1} *

[Event "Istanbul Open 2019"]
[Site "Istanbul"]
[Date "2019.08.29"]
[Round "5.4"]
[White "Shanava, Konstantine"]
[Black "Yarar, Muammer Atakan"]
[Result "1-0"]
[ECO "B11"]
[WhiteElo "2496"]
[BlackElo "1779"]
[Annotator "ChessBase"]
[PlyCount "107"]
[EventDate "2019.08.26"]
[EventType "swiss"]
[EventCountry "TUR"]
[SourceTitle "playchess.com"]
[Source "ChessBase"]
[SourceQuality "1"]
[TimeControl "5400+30"]

1. e4 c6 2. Nc3 d5 3. Nf3 Bg4 4. h3 Bxf3 5. Qxf3 e6 6. d4 dxe4 7. Qxe4 Nf6 8. Qd3 Qc7 9. Be2 Bd6 10. g3 Nbd7 11. Ne4 Nxe4 12. Qxe4 Nf6 13. Qf3 Qa5+ 14. c3 Qd5 15. O-O Qxf3 16. Bxf3 h6 {[%emt 1:36:42]} 17. Re1 {[%emt 0:25:30]} O-O-O {[%emt 0:00:00] %} 18. Re2 Rhe8 19. Be3 Nd5 20. Bd2 Re7 21. Rae1 Rde8 22. c4 Nf6 23. Bc3 Kd7 24. b3 Bc7 25. a3 Bd6 26. a4 a6 27. Kf1 Bc7 28. a5 Bd6 29. b4 Kc8 30. Bg2 Kd7 31. h4 Kc8 32. Bf3 Kd7 33. h5 Kc8 34. Re3 Kd7 35. Bd1 Rg8 36. f4 g5 37. d5 gxf4 38. dxe6+ fxe6 39. Rd3 Rxg3 40. Rxd6+ Kxd6 41. Bxf6 Rf7 42. Be5+ Ke7 43. Bc2 Rg5 44. Bg6 Rgf5 45. Bxf5 Rxf5 46. Kf2 f3 47. Re4 Rxh5 48. Kxf3 Rh3+ 49. Bg3 Rh1 50. Rg4 Kf6 51. Ke4 Rh5 52. Rg8 c5 53. Rf8+ Kg6 54. b5 1-0

[Event "Istanbul Open 2019"]
[Site "Istanbul"]
[Date "2019.08.29"]
[Round "5.5"]
[White "Ozer, Omer Faruk"]
[Black "Abishli, Oghuz"]
[Result "0-1"]
[ECO "C15"]
[WhiteElo "2357"]
[BlackElo "2038"]
[Annotator "RC"]
[PlyCount "54"]
[EventDate "2019.08.26"]
[EventType "swiss"]
[EventCountry "TUR"]
[SourceTitle "playchess.com"]
[Source "ChessBase"]
[SourceQuality "1"]
[TimeControl "5400+30"]

1. e4 e6 2. d4 d5 3. Nc3 Bb4 4. Nge2 Nf6 5. e5 {[%emt 1:18:36] D} Ne4 6. a3 Nxc3 7. bxc3 Be7 8. g3 b6 9. Bg2 Ba6 10. O-O h5 11. f4 g6 12. h3 Qd7 13. a4 Nc6 14. Rf3 Na5 15. Be3 Nc4 16. Bf2 Nb2 17. Qe1 Nxa4 18. Nc1 Bc4 19. Nd3 a5 20. g4 hxg4 21. hxg4 Qc6 22. f5 gxf5 23. gxf5 Bxd3 24. cxd3 Nxc3 25. Be3 Nb5 26. Qg3 O-O-O 27. Qg7 Rdg8 0-1

[Event "Istanbul Open 2019"]
[Site "Istanbul"]
[Date "2019.08.29"]
[Round "5.6"]
[White "Sar, Can"]
[Black "Ozsakallioglu, Okan"]
[Result "0-1"]
[ECO "B80"]
[WhiteElo "2003"]
[BlackElo "2324"]
[Annotator "NA"]
[PlyCount "80"]
[EventDate "2019.08.26"]
[EventType "swiss"]
[EventCountry "TUR"]
[SourceTitle "playchess.com"]
[Source "ChessBase"]
[SourceQuality "1"]
[TimeControl "5400+30"]

1. e4 c5 2. Nf3 e6 3. d4 cxd4 4. Nxd4 a6 5. Nc3 b5 6. a3 Bb7 7. g3 Nf6 8. Bg2 Qc7 9. O-O Nc6 10. Nb3 d6 11. f4 Be7 12. Be3 O-O 13. g4 Nd7 14. g5 Nb6 {[%clk} 15. Nd2 Rfe8 {[%emt 0:19:30] [%} 16. Qh5 {[%emt 0:25:00]} g6 {[%emt 0:00:30]} 17. Qh6 {[%emt 0:00:30]} Bf8 {[%emt 1:17:31] [} 18. Qh4 d5 19. Bxb6 Qxb6+ 20. Kh1 Ne7 21. Rf3 Qd4 22. Rd3 Qh8 23. Re1 dxe4 24. Ndxe4 Nf5 25. Qf2 Bg7 26. Nf6+ Bxf6 27. Bxb7 Rab8 28. gxf6 Rxb7 29. Ne4 h5 30. Red1 h4 31. Kg1 Qh5 32. Qf3 Qxf3 33. Rxf3 Rc7 34. c3 Rc4 35. Ng5 e5 36. Re1 e4 37. Rff1 e3 38. Nh3 Re6 39. Kg2 Rxf6 40. Nf2 Nd6 0-1

[Event "Istanbul Open 2019"]
[Site "Istanbul"]
[Date "2019.08.29"]
[Round "5.7"]
[White "Mammadov, Sadig"]
[Black "Ibik, Halit Yavuz"]
[Result "1-0"]
[ECO "B96"]
[WhiteElo "2243"]
[BlackElo "1990"]
[Annotator "RC"]
[PlyCount "90"]
[EventDate "2019.08.26"]
[EventType "swiss"]
[EventCountry "TUR"]
[SourceTitle "playchess.com"]
[Source "ChessBase"]
[SourceQuality "1"]
[TimeControl "5400+30"]

1. e4 c5 2. Nf3 d6 3. d4 cxd4 4. Nxd4 Nf6 5. Nc3 a6 6. Bg5 e6 7. f4 Nbd7 8. Qf3 Qc7 9. O-O-O b5 10. Bd3 Bb7 11. Rhe1 Qb6 12. Nd5 Qxd4 {[%emt 1:18:42] D} 13. Bxf6 gxf6 14. Bxb5 Qc5 15. b4 Qxb5 16. Nc7+ Ke7 17. Nxb5 axb5 18. Qd3 Ra6 19. g3 Rb6 20. Qe2 h5 21. Rd3 h4 22. Red1 hxg3 23. hxg3 Ke8 24. Ra3 Be7 25. Ra5 d5 26. exd5 Bxd5 27. Rxb5 Bf3 28. Qxf3 Rxb5 29. Qc6 Rd5 30. Rxd5 exd5 31. Qa8+ Bd8 32. Qxd5 Nb6 33. Qc6+ Ke7 34. a3 Rh3 35. a4 Nd7 36. Qe4+ Kf8 37. Qd3 Ke8 38. Qe3+ Kf8 39. Qd2 Ke8 40. Qe1+ Kf8 41. b5 f5 42. b6 Rh6 43. Qb4+ Ke8 44. b7 Bc7 45. Qb5 Kd8 1-0

[Event "Istanbul Open 2019"]
[Site "Istanbul"]
[Date "2019.08.29"]
[Round "5.9"]
[White "Aganazarov, Yagmyr"]
[Black "Mohannad, Farhan"]
[Result "0-1"]
[ECO "B01"]
[WhiteElo "1976"]
[BlackElo "2151"]
[Annotator "NA"]
[PlyCount "54"]
[EventDate "2019.08.26"]
[EventType "swiss"]
[EventCountry "TUR"]
[SourceTitle "playchess.com"]
[Source "ChessBase"]
[SourceQuality "1"]
[TimeControl "5400+30"]

1. e4 d5 2. exd5 Qxd5 3. Nc3 Qd6 4. d4 Nf6 5. Bd3 c6 6. Nge2 g6 7. Bf4 Qd8 8. Qd2 Nbd7 {[%emt 0:49:00]} 9. O-O-O {[%emt 1:21:03]} Nb6 {[%emt 0:00:30]} 10. Kb1 {[%emt 0:00:30]} Be6 {[%emt 0:00:30]} 11. Be5 {[%emt 0:00:30]} Bg7 {[%emt 0:00:30]} 12. Nf4 {[%emt 0:00:30]} Bc4 {[%emt 0:00:30]} 13. Bxc4 {[%emt 0:00:30]} Nxc4 {[%emt 0:00:30]} 14. Qe2 {[%emt 0:00:30]} b5 {[%emt 0:00:30]} 15. Qf3 {[%emt 0:00:30]} Rc8 {[%emt 0:00:30]} 16. h4 {[%emt 0:00:30]} h5 {[%emt 0:00:30]} 17. Rhe1 {[%emt 0:00:30]} O-O {[%emt 0:00:30]} 18. Rd3 {[%emt 0:00:30]} Qa5 {[%emt 0:00:30]} 19. Bxf6 {[%emt 0:00:30]} exf6 {[%emt 0:00:30]} 20. Red1 {[%emt 0:00:30]} Qb4 {[%emt 0:00:30]} 21. b3 {[%emt 0:00:30]} Qa3 {[%emt 0:00:30]} 22. bxc4 {[%emt 0:00:30]} bxc4 {[%emt 0:00:30]} 23. Na4 {[%emt 0:00:30]} Rb8+ {[%emt 0:00:30]} 24. Rb3 {[%emt 0:00:30]} cxb3 {[%emt 0:00:30]} 25. axb3 {[%emt 0:00:30]} Qxa4 {[%emt 0:00:30]} 26. g4 {[%emt 0:00:30]} hxg4 {[%emt 0:00:30]} 27. Qxg4 {[%emt 0:00:30]} Rxb3+ {[%emt 0:00:30]} 0-1

[Event "Istanbul Open 2019"]
[Site "Istanbul"]
[Date "2019.08.29"]
[Round "5.10"]
[White "Makaraci, Tunahan"]
[Black "Senyuz, Mustafa Zorbey"]
[Result "0-1"]
[ECO "B51"]
[WhiteElo "2064"]
[BlackElo "1844"]
[Annotator "NA"]
[PlyCount "68"]
[EventDate "2019.08.26"]
[EventType "swiss"]
[EventCountry "TUR"]
[SourceTitle "playchess.com"]
[Source "ChessBase"]
[SourceQuality "1"]
[TimeControl "5400+30"]

1. e4 c5 2. Nf3 d6 3. Bb5+ Nd7 4. d4 a6 5. Bxd7+ Bxd7 6. O-O cxd4 7. Qxd4 e5 8. Qd3 Be7 9. a4 h6 10. c4 Nf6 11. Nc3 O-O 12. Be3 Rc8 13. a5 Qc7 14. b3 Be6 15. h3 {[%emt 0:45:30] 1} Ne8 16. Bb6 Qd7 17. Rfd1 Qc6 18. Nd2 f5 19. exf5 Bxf5 20. Nde4 Bxe4 21. Qxe4 Qxe4 22. Nxe4 Kf7 23. Rd3 Ke6 24. Ra4 Rc6 25. Nc3 Nf6 26. Rd1 Bd8 27. Bxd8 Rxd8 28. f4 Nd7 29. Rd5 Rf8 30. fxe5 dxe5 31. Nd1 Rd6 32. Rxd6+ Kxd6 33. b4 Rc8 34. c5+ Ke6 0-1

[Event "Istanbul Open 2019"]
[Site "Istanbul"]
[Date "2019.08.29"]
[Round "5.11"]
[White "Citak, Selim"]
[Black "Grigoriev, Armen"]
[Result "1-0"]
[ECO "D43"]
[WhiteElo "2263"]
[BlackElo "2017"]
[Annotator "ChessBase"]
[PlyCount "67"]
[EventDate "2019.08.26"]
[EventType "swiss"]
[EventCountry "TUR"]
[SourceTitle "playchess.com"]
[Source "ChessBase"]
[SourceQuality "1"]
[TimeControl "5400+30"]

1. d4 Nf6 2. c4 e6 3. Nc3 Bb4 4. Nf3 d5 5. Bg5 h6 6. Bh4 dxc4 7. e3 b5 8. a4 c6 9. Be2 {[%emt 1:01:30] 1} Nbd7 10. O-O Qb6 11. Qc2 Bb7 12. e4 a6 13. Rfd1 O-O 14. Ne5 Rfc8 15. Nxf7 Kxf7 16. e5 g5 17. exf6 Nxf6 18. Bg3 Bxc3 19. bxc3 Rh8 20. Be5 Rag8 21. Qb2 Rd8 22. Bxc4 Rd7 23. Re1 Re8 24. Be2 Rf8 25. c4 Qd8 26. axb5 cxb5 27. cxb5 axb5 28. Bxb5 Re7 29. Be2 Bd5 30. Qd2 Kg8 31. Bd3 Kf7 32. h3 Nd7 33. Bg3 Nf6 34. Qe2 1-0

[Event "Istanbul Open 2019"]
[Site "Istanbul"]
[Date "2019.08.29"]
[Round "5.12"]
[White "Aliakbarov, Anar"]
[Black "Emir, Emirhan"]
[Result "1/2-1/2"]
[ECO "A90"]
[WhiteElo "2265"]
[BlackElo "1952"]
[Annotator "RC"]
[PlyCount "41"]
[EventDate "2019.08.26"]
[EventType "swiss"]
[EventCountry "TUR"]
[SourceTitle "playchess.com"]
[Source "ChessBase"]
[SourceQuality "1"]
[TimeControl "5400+30"]

1. d4 e6 2. c4 f5 3. g3 Nf6 4. Bg2 d5 5. Nh3 c6 6. Qc2 Bd6 7. Nd2 O-O 8. O-O Qe8 9. Nf3 h6 {[%emt 1:08:30] 1} 10. Nf4 Nbd7 11. Nd3 Qh5 12. c5 Be7 13. b3 g5 14. Rb1 Qg6 15. b4 Re8 16. Nfe5 Qg7 17. a4 a6 18. b5 axb5 19. axb5 Nxe5 20. Nxe5 cxb5 21. Rxb5 1/2-1/2

[Event "Istanbul Open 2019"]
[Site "Istanbul"]
[Date "2019.08.29"]
[Round "5.13"]
[White "Bayramov, Elvin"]
[Black "Aydin, Kaan Ayhan"]
[Result "1/2-1/2"]
[ECO "C29"]
[WhiteElo "2198"]
[BlackElo "1890"]
[Annotator "NA"]
[PlyCount "43"]
[EventDate "2019.08.26"]
[EventType "swiss"]
[EventCountry "TUR"]
[SourceTitle "playchess.com"]
[Source "ChessBase"]
[SourceQuality "1"]
[TimeControl "5400+30"]

1. e4 e5 2. Nc3 Nf6 3. f4 d5 4. fxe5 Nxe4 5. Qf3 Nc6 6. Bb5 Nxc3 7. bxc3 Qh4+ 8. g3 Qe4+ 9. Qxe4 dxe4 10. Ne2 Bd7 11. Bxc6 Bxc6 12. Rf1 {[%emt 1:02:00] :} Bc5 13. d4 exd3 14. cxd3 O-O 15. d4 Be7 16. a4 Bd5 17. Rf2 Bc4 18. Nf4 f6 19. exf6 Bxf6 20. Rb1 c5 21. Be3 b6 22. Nh5 1/2-1/2

[Event "Istanbul Open 2019"]
[Site "Istanbul"]
[Date "2019.08.29"]
[Round "5.14"]
[White "Rahimli, Ilkin"]
[Black "Yarashov, Azat"]
[Result "0-1"]
[ECO "B21"]
[WhiteElo "1992"]
[BlackElo "2156"]
[Annotator "ChessBase"]
[PlyCount "31"]
[EventDate "2019.08.26"]
[EventType "swiss"]
[EventCountry "TUR"]
[SourceTitle "playchess.com"]
[Source "ChessBase"]
[SourceQuality "1"]
[TimeControl "5400+30"]

1. e4 c5 2. f4 {[%emt 1:11:52]} d5 3. exd5 Nf6 4. Bb5+ Bd7 5. Bxd7+ Qxd7 6. c4 e6 7. Qe2 Bd6 8. f5 O-O 9. fxe6 fxe6 10. dxe6 Qe7 11. Nf3 Nc6 12. d3 Ng4 13. h3 Nge5 14. Nc3 Qxe6 15. Qe4 Nxf3+ 16. gxf3 0-1

[Event "Istanbul Open 2019"]
[Site "Istanbul"]
[Date "2019.08.29"]
[Round "5.15"]
[White "Ahmadov, Vusal"]
[Black "Menekse, Tuncay"]
[Result "1-0"]
[ECO "B01"]
[WhiteElo "1775"]
[BlackElo "1684"]
[Annotator "NA"]
[PlyCount "113"]
[EventDate "2019.08.26"]
[EventType "swiss"]
[EventCountry "TUR"]
[SourceTitle "playchess.com"]
[Source "ChessBase"]
[SourceQuality "1"]
[TimeControl "5400+30"]

1. e4 d5 2. exd5 Qxd5 3. Nc3 Qa5 4. d4 c6 5. Bc4 Nf6 6. Nge2 Bf5 7. O-O e6 8. Ng3 Bg6 9. Qe2 Be7 {[%emt 0:57:30] 8} 10. f4 Bf5 11. Qe5 Qxe5 12. fxe5 Nd5 13. Bxd5 cxd5 14. Nxf5 exf5 15. Nxd5 Na6 16. Nxe7 Kxe7 17. Rxf5 Ke6 18. Rf2 Rad8 19. c3 Rd7 20. Be3 b5 21. a4 b4 22. c4 Nc7 23. b3 Rhd8 24. Re1 Rxd4 25. Bxd4 Rxd4 26. Ref1 Rd7 27. Rf4 a5 28. Rg4 Ne8 29. Kf2 h5 30. Re4 Rd2+ 31. Re2 Rd3 32. Re3 Rd2+ 33. Kf3 Nc7 34. Rf2 Rd4 35. Ke2 Na6 36. Rd3 Re4+ 37. Kf3 Nc5 38. Rd5 Rxe5 39. Rxe5+ Kxe5 40. Rd2 Nxb3 41. Rd5+ Ke6 42. Ke3 f5 43. Kd3 Nc1+ 44. Kd2 Na2 45. Kc2 Nc3 46. Rxa5 Ne2 47. Kb3 h4 48. Rd5 h3 49. g3 Nc3 50. Rd4 Ne4 51. Kxb4 g5 52. a5 Nd6 53. a6 Nc8 54. Rd5 g4 55. Rd8 Ne7 56. Kc5 f4 57. gxf4 1-0

[Event "Istanbul Open 2019"]
[Site "Istanbul"]
[Date "2019.08.29"]
[Round "5.16"]
[White "Hakkaki Fard, Pedram"]
[Black "Yalcinkaya, Efe"]
[Result "0-1"]
[ECO "D00"]
[WhiteElo "1720"]
[BlackElo "1542"]
[Annotator "NA"]
[PlyCount "89"]
[EventDate "2019.08.26"]
[EventType "swiss"]
[EventCountry "TUR"]
[SourceTitle "playchess.com"]
[Source "ChessBase"]
[SourceQuality "1"]
[TimeControl "5400+30"]

1. d4 Nf6 2. Bf4 d5 3. e3 c5 4. c3 Nc6 5. Nd2 Bf5 6. Ngf3 Qb6 7. Nh4 Be4 8. f3 Bg6 9. Nxg6 hxg6 10. Qb3 c4 11. Qc2 Nh5 12. Bg5 e5 13. O-O-O Be7 14. Bxe7 Nxe7 15. Be2 exd4 16. cxd4 Qa5 17. Kb1 Nc6 18. Qc3 Qc7 19. g4 Nf6 20. e4 b5 21. Qe3 O-O-O 22. g5 Nh5 23. e5 Qb6 24. Nf1 Ne7 25. f4 Nf5 26. Bg4 Kb8 27. Bxf5 gxf5 28. Ng3 g6 29. Nxh5 Rxh5 30. Rde1 Re8 31. Re2 a6 32. b3 b4 33. bxc4 dxc4 34. Rd1 Reh8 35. e6 Qxe6 36. Qxe6 fxe6 37. Rxe6 Rxh2 38. d5 c3 39. Rc6 Rg2 40. Kc1 Rhh2 41. Re1 Rc2+ 42. Kb1 Rb2+ 43. Kc1 Rhc2+ 44. Kd1 Rd2+ 45. Kc1 0-1

[Event "Istanbul Open 2019"]
[Site "Istanbul"]
[Date "2019.08.29"]
[Round "5.17"]
[White "Ahmadov, Orkhan"]
[Black "Pektas, Gokdeniz"]
[Result "1/2-1/2"]
[ECO "A52"]
[WhiteElo "1615"]
[BlackElo "1652"]
[Annotator "NA"]
[PlyCount "50"]
[EventDate "2019.08.26"]
[EventType "swiss"]
[EventCountry "TUR"]
[SourceTitle "playchess.com"]
[Source "ChessBase"]
[SourceQuality "1"]
[TimeControl "5400+30"]

1. d4 Nf6 2. c4 e5 3. dxe5 Ng4 4. e3 Nxe5 5. f4 Nec6 6. Nf3 Bc5 7. Nc3 d6 8. a3 a5 9. Bd3 f5 10. Qc2 O-O 11. O-O Qe8 12. Nd5 Na6 13. Kh1 Be6 14. Re1 Qd7 15. b3 Rae8 16. Bb2 Ne7 17. e4 fxe4 18. Nxe7+ Rxe7 19. Bxe4 Bf5 20. Bxf5 Rxe1+ 21. Rxe1 Qxf5 22. Qxf5 Rxf5 23. Re7 Rf7 24. Re8+ Rf8 25. Re7 Rf7 1/2-1/2

[Event "Istanbul Open 2019"]
[Site "Istanbul"]
[Date "2019.08.29"]
[Round "5.18"]
[White "Torun, Ufuk"]
[Black "Metin, Enis"]
[Result "0-1"]
[ECO "E19"]
[WhiteElo "1568"]
[BlackElo "1749"]
[Annotator "NA"]
[PlyCount "42"]
[EventDate "2019.08.26"]
[EventType "swiss"]
[EventCountry "TUR"]
[SourceTitle "playchess.com"]
[Source "ChessBase"]
[SourceQuality "1"]
[TimeControl "5400+30"]

1. d4 Nf6 2. c4 e6 3. Nf3 b6 4. g3 Bb7 5. Bg2 Be7 6. O-O O-O 7. Nc3 Ne4 8. Qc2 Nxc3 9. bxc3 f5 10. a4 a5 11. Re1 Be4 12. Qb3 Bf6 13. Ba3 Re8 14. Nd2 Bxg2 15. Kxg2 d6 16. e4 fxe4 17. Nxe4 Nd7 18. Rad1 Kh8 19. Nxf6 Qxf6 20. Qc2 e5 21. d5 Rf8 {[%emt 1:39:01]} 0-1

[Event "Istanbul Open 2019"]
[Site "Istanbul"]
[Date "2019.08.30"]
[Round "6.1"]
[White "Kamer, Kayra"]
[Black "Yaran, Siar"]
[Result "1/2-1/2"]
[ECO "A20"]
[WhiteElo "2306"]
[BlackElo "2209"]
[Annotator "RC"]
[PlyCount "135"]
[EventDate "2019.08.26"]
[EventType "swiss"]
[EventCountry "TUR"]
[SourceTitle "playchess.com"]
[Source "ChessBase"]
[SourceQuality "1"]
[TimeControl "5400+30"]

1. g3 e5 2. c4 c6 3. d4 e4 4. Nc3 d5 5. Nh3 h6 6. cxd5 cxd5 7. Nf4 Nf6 8. Qb3 Nc6 9. Ncxd5 Nxd5 10. Qxd5 Qxd5 11. Nxd5 Nxd4 12. Nc7+ Kd8 13. Nxa8 Nc2+ 14. Kd1 Nxa1 15. Bf4 Be6 16. Kc1 Bxa2 17. b4 {[%emt 0:29:30]} Be6 {[%emt 1:05:30]} 18. Nc7 {[%emt 0:07:30]} Nb3+ {[%emt 0:00:30]} 19. Kb2 {[%emt 0:00:30]} Nd4 {[%emt 0:00:00]} 20. e3 {[%emt 0:00:30]} Nf3 {[%emt 0:00:00]} 21. Nxe6+ {[%emt 0:00:30]} fxe6 {[%emt 0:00:30]} 22. Bb8 {[%emt 0:14:30]} Bxb4 {[%emt 0:06:30]} 23. Bxa7 {[%emt 0:00:00]} Ke7 {[%emt 0:02:30]} 24. Kb3 {[%emt 0:11:00]} Bd6 {[%emt 0:01:30]} 25. Bd4 {[%emt 0:01:30]} Nd2+ {[%emt 0:06:36]} 26. Kc2 {[%emt 0:01:30]} Nxf1 {[%emt 0:00:04]} 27. Rxf1 {[%emt 0:00:30]} e5 {[%emt 0:00:22]} 28. Bc3 {[%emt 0:00:30]} Rf8 {[%emt 0:02:59]} 29. Kb3 {[%emt 0:00:30]} Ke6 {[%emt 0:01:22]} 30. Bb4 {[%emt 0:03:30]} Bxb4 {[%emt 0:00:59]} 31. Kxb4 {[%emt 0:00:00]} h5 {[%emt 0:02:17]} 32. Kc3 {[%emt 0:02:00]} g5 {[%emt 0:01:57]} 33. Kd2 {[%emt 0:09:30]} Kd5 {[%emt 0:01:33]} 34. Kc3 {[%emt 0:00:00]} Kc5 {[%emt 0:00:18]} 35. Kb3 {[%emt 0:00:00]} Kd5 {[%emt 0:03:59]} 36. Rd1+ {[%emt 0:05:43]} Ke6 {[%emt 0:00:30]} 37. Rd2 {[%emt 0:00:30]} Kf5 {[%emt 0:00:30]} 38. h3 {[%emt 0:00:30]} Ke6 {[%emt 0:00:30]} 39. Kb4 {[%emt 0:00:30]} h4 {[%emt 0:00:00]} 40. Kc5 {[%emt 0:08:20]} Rc8+ {[%emt 0:03:53]} 41. Kb6 {[%emt 0:00:01]} g4 {[%emt 0:00:00]} 42. hxg4 {[%emt 0:00:33]} h3 {[%emt 0:03:45]} 43. Rd1 {[%emt 0:00:09]} Rh8 {[%emt 0:00:04]} 44. Kxb7 {[%emt 0:01:12]} Kf6 {[%emt 0:00:30]} 45. Kc6 {[%emt 0:00:30]} Kg5 {[%emt 0:00:30]} 46. Rh1 {[%emt 0:00:43]} Kxg4 {[%emt 0:00:03]} 47. Kd5 {[%emt 0:10:36]} Kf3 {[%emt 0:00:14]} 48. Rh2 {[%emt 0:00:07]} Rh5 {[%emt 0:02:53]} 49. Ke6 {[%emt 0:00:32]} Kg4 {[%emt 0:01:09]} 50. Kf6 {[%emt 0:00:29]} Rf5+ {[%emt 0:00:05]} 51. Ke6 {[%emt 0:00:00]} Rh5 {[%emt 0:00:13]} 52. Kf6 {[%emt 0:00:04]} Kf3 {[%emt 0:00:26]} 53. Kg6 {[%emt 0:00:45]} Rh8 {[%emt 0:00:10]} 54. Kf6 {[%emt 0:00:26]} Rh5 {[%emt 0:01:05]} 55. Kg6 {[%emt 0:00:08]} Rh8 {[%emt 0:00:06]} 56. Kf6 {[%emt 0:00:05]} Ke2 {[%emt 0:01:12]} 57. Kg7 {[%emt 0:01:06]} Ra8 {[%emt 0:00:16]} 58. g4 {[%emt 0:01:20]} Kf1 {[%emt 0:00:38]} 59. g5 {[%emt 0:00:33]} Ra2 {[%emt 0:00:12]} 60. g6 {[%emt 0:00:40]} Rxf2 {[%emt 0:00:02]} 61. Rxh3 {[%emt 0:00:02]} Rf3 {[%emt 0:00:14]} 62. Rh5 {[%emt 0:00:53]} Kf2 {[%emt 0:00:27]} 63. Rxe5 {[%emt 0:00:30]} Kxe3 {[%emt 0:00:04]} 64. Kh6 {[%emt 0:00:47]} Kf4 {[%emt 0:00:05]} 65. Rh5 {[%emt 0:00:36]} Rg3 {[%emt 0:01:56]} 66. g7 {[%emt 0:00:25]} e3 {[%emt 0:00:28]} 67. Kh7 {[%emt 0:00:15]} e2 {[%emt 0:00:27]} 68. Rh1 {[%emt 0:00:04]} 1/2-1/2

[Event "Istanbul Open 2019"]
[Site "Istanbul"]
[Date "2019.08.30"]
[Round "6.2"]
[White "Eren, Ataberk"]
[Black "Shanava, Konstantine"]
[Result "0-1"]
[ECO "E12"]
[WhiteElo "2254"]
[BlackElo "2496"]
[Annotator "ChessBase"]
[PlyCount "84"]
[EventDate "2019.08.26"]
[EventType "swiss"]
[EventCountry "TUR"]
[SourceTitle "playchess.com"]
[Source "ChessBase"]
[SourceQuality "1"]
[TimeControl "5400+30"]

1. d4 f5 2. c4 Nf6 3. Nc3 b6 4. Nf3 e6 5. a3 Bb7 6. g3 Ne4 7. Qc2 Be7 8. Bg2 O-O 9. O-O Nxc3 10. Qxc3 Bf6 11. b4 c5 12. Bb2 cxd4 13. Nxd4 Bxg2 14. Kxg2 Nc6 15. Qd2 Ne5 16. Rac1 Rc8 17. Nb5 {[%emt 0:47:30]} Nxc4 {[%emt 0:31:30]} 18. Bxf6 {[%emt 0:00:30]} Rxf6 {[%emt 0:24:30]} 19. Qd3 {[%emt 0:00:30]} d5 {[%emt 0:00:30]} 20. Nxa7 {[%emt 0:00:30]} Ra8 {[%emt 0:00:30]} 21. Nb5 {[%emt 0:00:30]} Rf7 {[%emt 0:00:30]} 22. Ra1 {[%emt 0:11:30]} f4 {[%emt 0:01:30]} 23. a4 {[%emt 0:05:30]} Qf6 {[%emt 0:02:30]} 24. a5 {[%emt 0:02:30]} bxa5 {[%emt 0:04:30]} 25. bxa5 {[%emt 0:00:30]} Rxa5 {[%emt 0:00:30]} 26. Rxa5 {[%emt 0:00:30]} Nxa5 {[%emt 0:00:30]} 27. Nd6 {[%emt 0:00:30]} Rf8 {[%emt 0:00:30]} 28. Rc1 {[%emt 0:09:30]} Qe5 {[%emt 0:10:30]} 29. Rc5 {[%emt 0:04:58]} Qxd6 {[%emt 0:02:30]} 30. Rxa5 {[%emt 0:00:18]} fxg3 {[%emt 0:00:30]} 31. Qxg3 {[%emt 0:00:14]} Qb6 {[%emt 0:02:30]} 32. Ra3 {[%emt 0:00:54]} e5 {[%emt 0:01:30]} 33. Qh4 {[%emt 0:05:57]} h6 {[%emt 0:03:27]} 34. Re3 {[%emt 0:00:58]} e4 {[%emt 0:00:42]} 35. Qh5 {[%emt 0:01:13]} Qd4 {[%emt 0:01:57]} 36. Qh4 {[%emt 0:01:33]} Kh7 {[%emt 0:00:37]} 37. Rh3 {[%emt 0:03:53]} Rf5 {[%emt 0:01:14]} 38. e3 {[%emt 0:03:29]} Qb2 {[%emt 0:01:54]} 39. Qg3 {[%emt 0:00:42]} Rf3 {[%emt 0:01:08]} 40. Qh4 {[%emt 0:00:08]} Rf6 {[%emt 0:00:00]} 41. Kg1 {[%emt 0:00:20]} Qb1+ {[%emt 0:00:31]} 42. Kg2 {[%emt 0:00:02]} Qe1 {[%emt 0:00:00]} 0-1

[Event "Istanbul Open 2019"]
[Site "Istanbul"]
[Date "2019.08.30"]
[Round "6.3"]
[White "Mohannad, Farhan"]
[Black "Arat, Ufuk Sezen"]
[Result "1/2-1/2"]
[ECO "E92"]
[WhiteElo "2151"]
[BlackElo "2390"]
[Annotator "NA"]
[PlyCount "99"]
[EventDate "2019.08.26"]
[EventType "swiss"]
[EventCountry "TUR"]
[SourceTitle "playchess.com"]
[Source "ChessBase"]
[SourceQuality "1"]
[TimeControl "5400+30"]

1. d4 Nf6 2. c4 g6 3. Nc3 Bg7 4. e4 O-O 5. Nf3 d6 6. Be2 e5 7. d5 a5 8. O-O Na6 9. Bg5 h6 10. Bh4 g5 11. Bg3 Nh5 12. Nd2 Nf4 13. Bg4 Bxg4 14. Qxg4 h5 15. Qf5 Qf6 16. f3 Nb4 17. Rab1 Qh6 18. Qd7 Rac8 19. Qa4 b6 20. Qd1 Kh8 {[%emt 1:06:00]} 21. Nb3 {[%emt 0:13:30]} Bf6 {[%emt 0:06:30]} 22. Nc1 {[%emt 0:01:30]} Rg8 {[%emt 0:00:30]} 23. a3 {[%emt 0:01:30]} Na6 {[%emt 0:00:30]} 24. b4 {[%emt 0:00:00]} axb4 {[%emt 0:00:30]} 25. axb4 {[%emt 0:00:00]} g4 {[%emt 0:01:30]} 26. N3e2 {[%emt 0:16:30]} Rg6 {[%emt 0:08:51]} 27. Bxf4 {[%emt 0:05:30]} exf4 {[%emt 0:00:33]} 28. fxg4 {[%emt 0:00:00]} Rcg8 {[%emt 0:04:08]} 29. Nxf4 {[%emt 0:07:00]} Rxg4 {[%emt 0:00:05]} 30. Ncd3 {[%emt 0:00:30]} Be5 {[%emt 0:03:28]} 31. Qf3 {[%emt 0:04:30]} Nb8 {[%emt 0:00:28]} 32. Nxe5 {[%emt 0:19:30]} dxe5 {[%emt 0:00:30]} 33. Nd3 {[%emt 0:00:00]} Rxg2+ {[%emt 0:01:11]} 34. Kh1 {[%emt 0:00:00]} Nd7 {[%emt 0:02:55]} 35. Rg1 {[%emt 0:00:30]} Rxg1+ {[%emt 0:02:12]} 36. Rxg1 {[%emt 0:00:30]} Rxg1+ {[%emt 0:00:00]} 37. Kxg1 {[%emt 0:00:30]} Qg5+ {[%emt 0:01:16]} 38. Qg3 {[%emt 0:01:30]} Qd2 {[%emt 0:01:04]} 39. Qf3 {[%emt 0:01:30]} Kg7 {[%emt 0:01:26]} 40. Qg2+ {[%emt 0:00:30]} Qxg2+ {[%emt 0:00:30]} 41. Kxg2 {[%emt 0:00:00]} f5 {[%emt 0:00:00]} 42. Kf3 {[%emt 0:02:00]} Kf6 {[%emt 0:00:00]} 43. c5 {[%emt 0:01:30]} bxc5 {[%emt 0:00:56]} 44. bxc5 {[%emt 0:00:30]} f4 {[%emt 0:01:29]} 45. h4 {[%emt 0:04:30]} Nb8 {[%emt 0:00:36]} 46. c6 {[%emt 0:00:30]} Na6 {[%emt 0:00:35]} 47. Kf2 {[%emt 0:00:00]} Nb8 {[%emt 0:00:18]} 48. Kf3 {[%emt 0:06:00]} Na6 {[%emt 0:00:04]} 49. Kf2 {[%emt 0:00:30]} Nb8 {[%emt 0:00:30]} 50. Kf3 {[%emt 0:00:00]} 1/2-1/2